bitfinex-derivatives/quotes_SOLF0:USTF0_20241025
["timestamp","ask_amount","ask_price","bid_price","bid_amount"]
[1729885018933,2.971,168.56,168.54,6.78]
[1729885020638,2.971,168.55,168.54,6.78]
[1729885021434,20.5314019,168.65,168.54,6.78]
[1729885021638,21.8039019,168.67,168.54,27.3114019]
[1729885021831,3.04498765,168.66,168.54,27.3114019]
[1729885022033,21.8039019,168.67,168.54,6.78]
[1729885022034,20.5314019,168.64,168.54,6.78]
[1729885022340,20.5314019,168.61,168.54,6.78]
[1729885022537,2.971,168.55,168.54,6.78]
[1729885022731,20.5314019,168.59,168.52,6.78]
[1729885023537,20.5314019,168.59,168.5,6.8]
[1729885023735,1.2725,168.58,168.5,6.8]
[1729885023934,2.5308,168.58,168.5,6.8]
[1729885024341,2.9717,168.52,168.5,6.8]
[1729885024639,2.9717,168.52,168.44,1.2183]
[1729885024640,20.5314019,168.53,168.44,6.8]
[1729885024828,20.5314019,168.56,168.44,6.8]
[1729885025034,2.9719,168.51,168.45,1.2791]
[1729885026239,2.9719,168.5,168.45,1.2791]
[1729885026538,2.5308,168.58,168.46,23.5039019]
[1729885026740,2.9716,168.52,168.46,23.5039019]
[1729885028442,2.9718,168.51,168.46,23.5039019]
[1729885029741,2.9719,168.5,168.46,23.5039019]
[1729885030044,2.5308,168.58,168.46,23.5039019]
[1729885030543,2.9719,168.5,168.46,23.5039019]
[1729885031438,23.0622019,168.58,168.46,20.5314019]
[1729885031637,2.5308,168.58,168.48,20.5314019]
[1729885031938,21.7490019,168.63,168.49,1.1937]
[1729885032136,21.7490019,168.63,168.5,6.76]
[1729885032333,1.2176,168.63,168.5,6.76]
[1729885032536,20.5314019,168.62,168.5,6.76]
[1729885032743,2.9704,168.59,168.5,6.76]
[1729885032937,20.5314019,168.62,168.5,6.76]
[1729885033744,20.5314019,168.62,168.5,7.9858]
[1729885033939,23.50629564,168.62,168.5,7.9858]
[1729885034246,2.9709,168.56,168.5,7.9858]
[1729885034834,2.9709,168.56,168.5,10.9576]
[1729885035233,2.971,168.55,168.5,10.9576]
[1729885035537,2.971,168.55,168.5,7.9858]
[1729885036041,2.9712,168.54,168.5,7.9858]
[1729885036343,20.5314019,168.6,168.5,7.9858]
[1729885036541,2.9717,168.52,168.5,7.9858]
[1729885036734,2.9717,168.52,168.5,6.76]
[1729885037345,2.9717,168.51,168.5,6.76]
[1729885038541,2.9715,168.53,168.5,6.76]
[1729885038744,24.7213197,168.59,168.5,6.76]
[1729885038944,20.5314019,168.56,168.46,1.312]
[1729885039251,20.5314019,168.56,168.47,6.76]
[1729885040140,1.281,168.55,168.47,6.76]
[1729885040343,20.5314019,168.54,168.47,6.76]
[1729885041841,2.9721,168.5,168.47,6.76]
[1729885043539,20.5314019,168.54,168.47,6.76]
[1729885043540,2.9723,168.48,168.47,6.76]
[1729885047545,20.5314019,168.54,168.42,2.5408]
[1729885047546,2.9728,168.45,168.43,6.76]
[1729885047752,20.5314019,168.54,168.43,6.76]
[1729885048247,12.84606598,168.52,168.43,6.76]
[1729885049152,2.9721,168.49,168.43,9.7331]
[1729885051353,2.9723,168.48,168.43,9.7331]
[1729885052243,2.9723,168.48,168.43,6.76]
[1729885052850,4.1899178,168.59,168.46,12.84606598]
[1729885053053,1.2309,168.59,168.51,12.84606598]
[1729885053254,1.3028,168.63,168.51,12.84606598]
[1729885053255,15.80865102,168.62,168.52,6.76]
[1729885053555,15.80865102,168.62,168.56,12.84606598]
[1729885053556,2.96258504,168.62,168.56,12.84606598]
[1729885053957,2.96258504,168.62,168.52,7.9592]
[1729885053958,1.2664,168.64,168.57,4.74]
[1729885054157,2.9704,168.59,168.57,4.74]
[1729885054453,12.84606598,168.63,168.57,4.74]
[1729885054755,2.9705,168.58,168.57,4.74]
[1729885056453,1.2664,168.64,168.57,4.74]
[1729885056647,1.2491,168.68,168.57,17.58606598]
[1729885056847,12.84606598,168.69,168.58,1.2119]
[1729885057052,12.84606598,168.69,168.59,6.76]
[1729885057451,1.2608,168.7,168.59,6.76]
[1729885057452,12.84606598,168.67,168.59,6.76]
[1729885058659,2.9698,168.62,168.59,6.76]
[1729885058959,12.84606598,168.67,168.59,6.76]
[1729885059152,2.969,168.67,168.59,6.76]
[1729885059353,12.84606598,168.65,168.59,6.76]
[1729885059961,2.97,168.61,168.59,6.76]
[1729885060961,2.9701,168.6,168.59,6.76]
[1729885061561,2.9705,168.58,168.57,4.74]
[1729885061961,15.81656598,168.58,168.57,4.74]
[1729885062153,12.84606598,168.55,168.52,7.9392]
[1729885062554,12.84606598,168.55,168.5,1.2235]
[1729885062555,12.84606598,168.55,168.5,6.74]
[1729885062861,2.9715,168.53,168.5,6.74]
[1729885063565,2.9715,168.53,168.51,6.74]
[1729885064861,2.9716,168.52,168.51,6.74]
[1729885066966,20.54410354,168.57,168.51,6.74]
[1729885067158,20.54410354,168.59,168.51,6.74]
[1729885067669,2.9715,168.53,168.51,6.74]
[1729885068863,2.9715,168.53,168.48,65.3835]
[1729885069063,2.9715,168.53,168.49,6.74]
[1729885069462,2.9716,168.52,168.49,6.74]
[1729885072167,2.9718,168.51,168.49,6.74]
[1729885073472,20.54410354,168.59,168.49,6.74]
[1729885073765,2.9719,168.5,168.49,6.74]
[1729885073970,2.3969,168.63,168.48,64.16]
[1729885073971,20.54410354,168.56,168.48,64.16]
[1729885074172,2.9721,168.49,168.48,64.16]
[1729885074474,2.9721,168.49,168.48,70.9]
[1729885075571,2.9721,168.49,168.48,6.74]
[1729885077466,20.54410354,168.54,168.43,1.2939]
[1729885077661,2.9726,168.47,168.44,6.74]
[1729885078067,2.5654,168.55,168.44,27.28410354]
[1729885078271,2.5654,168.55,168.47,2.9723]
[1729885078468,1.2669,168.55,168.45,1.48625946]
[1729885078769,2.9717,168.52,168.45,1.48625946]
[1729885078973,1.2669,168.55,168.45,1.48625946]
[1729885079174,2.9717,168.51,168.47,2.9724]
[1729885079565,1.2669,168.55,168.44,6.74]
[1729885079566,2.90806014,168.55,168.44,6.74]
[1729885079763,2.9724,168.48,168.45,1.48623334]
[1729885080172,2.9724,168.48,168.44,6.74]
[1729885080371,2.9724,168.48,168.45,1.48644426]
[1729885080678,2.9724,168.47,168.44,6.74]
[1729885080875,2.9724,168.47,168.45,1.48638659]
[1729885081074,2.9724,168.47,168.44,6.74]
[1729885081274,2.9724,168.47,168.45,1.48636513]
[1729885081476,2.9724,168.47,168.46,1.48636513]
[1729885081867,2.9724,168.47,168.44,6.74]
[1729885082269,2.9724,168.47,168.45,1.48641247]
[1729885082471,2.9724,168.47,168.46,1.48641895]
[1729885082671,2.9724,168.47,168.44,6.74]
[1729885082877,2.9724,168.47,168.45,1.48643272]
[1729885083171,2.9724,168.47,168.44,6.74]
[1729885083378,2.9724,168.47,168.45,1.48644568]
[1729885083571,2.9724,168.47,168.44,6.74]
[1729885083772,2.9724,168.47,168.45,1.48645245]
[1729885083976,2.9724,168.47,168.44,6.74]
[1729885084180,2.9724,168.47,168.45,1.48645101]
[1729885084380,2.9724,168.47,168.46,1.48645101]
[1729885084678,15.81784941,168.47,168.46,6.74]
[1729885087082,15.81784941,168.47,168.46,11.48]
[1729885087381,15.81784941,168.47,168.46,4.74]
[1729885088187,2.9724,168.47,168.46,4.74]
[1729885088387,2.9724,168.48,168.46,4.74]
[1729885088989,12.84544941,168.5,168.46,4.74]
[1729885088990,2.9724,168.47,168.46,4.74]
[1729885089289,15.44794941,168.54,168.46,4.74]
[1729885089494,2.9717,168.51,168.46,7.7126]
[1729885089687,2.9717,168.51,168.46,9.0068]
[1729885089988,2.9717,168.51,168.46,6.0342]
[1729885090387,2.9717,168.51,168.47,1.48641176]
[1729885090587,2.9717,168.51,168.48,6.7]
[1729885091100,2.9719,168.5,168.48,6.7]
[1729885092590,2.9721,168.49,168.48,6.7]
[1729885093391,2.9715,168.53,168.48,6.7]
[1729885093797,2.9715,168.53,168.49,12.84544941]
[1729885094186,2.9715,168.53,168.49,15.81744941]
[1729885094391,2.9712,168.55,168.49,12.84544941]
[1729885094784,2.9712,168.55,168.51,2.9717]
[1729885095591,2.9708,168.57,168.49,12.84544941]
[1729885095796,2.9708,168.57,168.52,12.84544941]
[1729885096396,1.2417,168.6,168.52,15.81694941]
[1729885097090,2.9708,168.57,168.52,15.81694941]
[1729885097495,2.9711,168.55,168.52,12.84544941]
[1729885098796,2.9705,168.59,168.55,2.971]
[1729885099102,179.38420669,168.68,168.48,22.55696329]
[1729885099103,12.84544941,168.65,168.56,19.54544941]
[1729885099290,2.5078,168.67,168.58,12.84544941]
[1729885099602,12.84544941,168.72,168.61,12.84544941]
[1729885099800,12.84544941,168.72,168.62,6.7]
[1729885100395,12.84544941,168.72,168.63,12.84544941]
[1729885100705,2.9685,168.7,168.63,12.84544941]
[1729885100896,12.84544941,168.72,168.63,12.84544941]
[1729885102299,2.9687,168.69,168.63,15.81494941]
[1729885103705,2.9688,168.68,168.64,2.9694]
[1729885104200,12.84544941,168.76,168.65,12.84544941]
[1729885104993,2.9679,168.73,168.65,15.81464941]
[1729885105298,12.84544941,168.76,168.65,15.81464941]
[1729885105890,2.9683,168.71,168.65,15.81464941]
[1729885107599,12.84544941,168.74,168.65,15.81474941]
[1729885107799,12.84544941,168.74,168.65,12.84544941]
[1729885107998,12.84544941,168.72,168.64,1.3192]
[1729885108605,2.9686,168.69,168.64,4.2885]
[1729885110495,4.32434771,168.77,168.62,6.7]
[1729885110496,12.84544941,168.7,168.62,6.7]
[1729885112498,1.2993,168.73,168.62,6.7]
[1729885112499,12.84544941,168.72,168.62,6.7]
[1729885112694,4.32434771,168.77,168.67,12.84544941]
[1729885112996,1.3085,168.77,168.7,12.84544941]
[1729885113201,1.3085,168.77,168.71,6.7]
[1729885113796,179.20946168,168.82,168.71,19.54544941]
[1729885113995,0.95818264,168.81,168.74,12.84544941]
[1729885114195,2.967,168.78,168.74,12.84544941]
[1729885114393,179.20946168,168.82,168.74,12.84544941]
[1729885115505,2.9671,168.78,168.74,12.84544941]
[1729885115695,2.5732,168.84,168.74,12.84544941]
[1729885116008,2.5732,168.84,168.71,6.7]
[1729885116009,1.2599,168.84,168.76,12.84544941]
[1729885116303,1.2599,168.84,168.77,6.7]
[1729885116901,2.9666,168.81,168.77,6.7]
[1729885117399,1.2599,168.84,168.77,6.7]
[1729885117699,14.10534941,168.84,168.77,6.7]
[1729885117900,12.84544941,168.82,168.77,6.7]
[1729885118302,2.9669,168.79,168.77,6.7]
[1729885119204,2.967,168.78,168.77,6.7]
[1729885119403,12.84544941,168.82,168.77,6.7]
[1729885121299,2.9669,168.79,168.77,6.7]
[1729885121506,12.84544941,168.8,168.77,6.7]
[1729885121805,2.967,168.79,168.77,6.7]
[1729885122311,17.14247567,168.83,168.77,6.7]
[1729885122804,2.967,168.78,168.77,6.7]
[1729885123701,2.967,168.78,168.69,12.84544941]
[1729885123702,2.9675,168.76,168.75,6.66]
[1729885123898,12.84544941,168.76,168.73,6.66]
[1729885124102,12.84544941,168.76,168.72,6.66]
[1729885124609,12.84544941,168.74,168.67,2.5087]
[1729885124914,2.9686,168.69,168.68,6.66]
[1729885125105,12.84544941,168.74,168.66,6.66]
[1729885125305,12.84544941,168.74,168.67,6.66]
[1729885125505,2.9682,168.72,168.67,6.66]
[1729885126799,2.9682,168.72,168.67,9.6289]
[1729885126999,2.9682,168.72,168.67,6.66]
[1729885127401,2.9686,168.7,168.67,6.66]
[1729885127604,12.84544941,168.72,168.67,6.66]
[1729885128009,2.9687,168.69,168.67,6.66]
[1729885128207,12.84544941,168.72,168.67,6.66]
[1729885129211,2.9685,168.7,168.67,6.66]
[1729885130411,12.84544941,168.72,168.67,6.66]
[1729885130616,2.9686,168.69,168.67,6.66]
[1729885131812,12.84544941,168.72,168.67,6.66]
[1729885132008,12.84544941,168.69,168.66,6.66]
[1729885132413,12.84544941,168.69,168.61,1.3043]
[1729885132414,2.9689,168.67,168.61,1.3043]
[1729885132620,2.9689,168.67,168.62,6.66]
[1729885133216,2.9691,168.67,168.62,9.6297]
[1729885134213,2.9691,168.66,168.62,9.6297]
[1729885134916,2.9691,168.66,168.62,10.9068]
[1729885135916,12.84544941,168.7,168.62,10.9068]
[1729885136124,2.9693,168.65,168.62,10.9068]
[1729885136812,12.84544941,168.66,168.61,1.3043]
[1729885137011,12.84544941,168.67,168.62,6.66]
[1729885138721,12.84544941,168.67,168.59,68.2815]
[1729885139015,12.84544941,168.67,168.62,6.66]
[1729885139619,2.9692,168.66,168.62,6.66]
[1729885139823,12.84544941,168.65,168.62,6.66]
[1729885140317,2.9696,168.63,168.62,6.66]
[1729885142910,2.9692,168.66,168.62,6.66]
[1729885143119,14.06474941,168.69,168.62,6.66]
[1729885143626,2.9692,168.66,168.62,6.66]
[1729885144512,1.2193,168.69,168.62,6.66]
[1729885144710,1.2912,168.73,168.63,12.84544941]
[1729885144920,17.84,168.81,168.63,14.14114941]
[1729885144921,12.84544941,168.74,168.63,14.14114941]
[1729885145123,12.84544941,168.74,168.66,2.9689]
[1729885145124,2.9683,168.71,168.66,2.9689]
[1729885146117,1.1993,168.77,168.67,2.9689]
[1729885146118,2.968,168.73,168.67,2.9689]
[1729885146322,12.84544941,168.76,168.68,6.66]
[1729885148116,2.9682,168.71,168.68,6.66]
[1729885149622,15.77992815,168.74,168.68,6.66]
[1729885149820,15.81404941,168.69,168.68,6.66]
[1729885150024,12.84544941,168.69,168.64,6.66]
[1729885150225,2.9692,168.66,168.64,6.66]
[1729885150624,12.84544941,168.69,168.64,6.66]
[1729885150826,2.9693,168.65,168.64,6.66]
[1729885152423,12.84544941,168.69,168.64,6.66]
[1729885152628,12.84544941,168.72,168.64,6.66]
[1729885153031,2.9685,168.7,168.64,6.66]
[1729885153226,12.84544941,168.72,168.64,6.66]
[1729885153427,12.84544941,168.74,168.64,19.50544941]
[1729885154230,12.84544941,168.74,168.66,2.969]
[1729885154438,1.2512,168.8,168.66,12.84544941]
[1729885154627,12.84544941,168.78,168.67,1.2589]
[1729885154832,2.9678,168.74,168.68,2.9686]
[1729885155026,12.84544941,168.78,168.68,2.9686]
[1729885155530,2.9678,168.74,168.68,2.9686]
[1729885155727,12.84544941,168.78,168.68,2.9686]
[1729885156640,1.2512,168.8,168.67,4.2278]
[1729885156641,12.84544941,168.76,168.67,4.2278]
[1729885157030,2.968,168.73,168.67,4.2278]
[1729885157331,12.84544941,168.76,168.67,4.2278]
[1729885157534,2.9679,168.73,168.68,2.9686]
[1729885157736,14.04474941,168.77,168.67,1.2589]
[1729885158035,14.04474941,168.77,168.67,14.10434941]
[1729885158235,2.9679,168.73,168.68,2.9686]
[1729885158438,14.04474941,168.77,168.67,14.10434941]
[1729885158631,12.84544941,168.77,168.67,14.10434941]
[1729885159441,2.9677,168.74,168.67,14.10434941]
[1729885159734,12.84544941,168.77,168.67,14.10434941]
[1729885160132,12.84544941,168.77,168.7,2.9682]
[1729885160338,12.84544941,168.79,168.71,6.64]
[1729885160532,12.84544941,168.79,168.71,7.8574]
[1729885160729,12.84544941,168.77,168.71,6.64]
[1729885162546,1.2246,168.81,168.7,6.64]
[1729885162744,0.95806448,168.8,168.7,6.64]
[1729885163041,12.84544941,168.73,168.7,6.64]
[1729885164243,2.9682,168.71,168.7,6.64]
[1729885164545,12.84544941,168.71,168.66,6.64]
[1729885164843,2.9692,168.66,168.65,6.64]
[1729885165437,2.9695,168.64,168.62,1.2384]
[1729885165632,2.5956,168.73,168.61,6.64]
[1729885165838,12.84544941,168.64,168.61,6.64]
[1729885166338,2.5956,168.73,168.61,6.64]
[1729885166339,15.81524941,168.62,168.61,6.64]
[1729885166539,15.81524941,168.62,168.55,1.3013]
[1729885166540,12.84544941,168.62,168.56,6.64]
[1729885166840,2.5956,168.65,168.56,6.64]
[1729885167042,2.9705,168.58,168.56,6.64]
[1729885167938,2.9707,168.57,168.5,4.2264]
[1729885168140,12.84544941,168.59,168.53,6.64]
[1729885168347,20.56205285,168.59,168.53,6.64]
[1729885168841,20.56205285,168.56,168.5,7.8945]
[1729885169647,20.56205285,168.56,168.5,6.64]
[1729885170446,2.9716,168.52,168.5,6.64]
[1729885170648,20.56205285,168.56,168.5,6.64]
[1729885170841,23.58849364,168.6,168.5,6.64]
[1729885171041,2.9712,168.55,168.5,6.64]
[1729885171242,23.58849364,168.6,168.5,6.64]
[1729885171443,20.56205285,168.57,168.5,6.64]
[1729885171945,23.58819637,168.57,168.46,1.2657]
[1729885172145,2.972,168.5,168.47,6.64]
[1729885172538,20.56205285,168.55,168.47,6.64]
[1729885172943,2.972,168.5,168.47,6.64]
[1729885173144,20.56205285,168.55,168.47,6.64]
[1729885173744,2.9717,168.52,168.47,6.64]
[1729885177059,20.56205285,168.6,168.47,6.64]
[1729885177254,1.2563,168.61,168.48,20.56205285]
[1729885177558,1.2563,168.61,168.49,1.2246]
[1729885178260,4.25580528,168.61,168.49,1.2246]
[1729885178445,2.971,168.56,168.5,2.9718]
[1729885178659,2.971,168.56,168.49,1.2246]
[1729885179054,2.971,168.56,168.51,2.9716]
[1729885179347,2.971,168.55,168.49,1.2246]
[1729885179748,2.971,168.55,168.5,2.9719]
[1729885181060,2.9712,168.54,168.5,2.9719]
[1729885182455,1.2563,168.61,168.49,1.2246]
[1729885182961,1.2563,168.61,168.5,2.9719]
[1729885182962,2.9706,168.58,168.5,2.9719]
[1729885183155,1.2563,168.61,168.49,1.2246]
[1729885183657,2.9711,168.55,168.51,2.9716]
[1729885183860,1.2563,168.61,168.49,1.2246]
[1729885184354,2.971,168.56,168.51,2.9716]
[1729885186169,2.971,168.55,168.51,2.9716]
[1729885186652,1.2563,168.61,168.49,1.2246]
[1729885186858,1.2563,168.61,168.5,2.9719]
[1729885187059,1.2563,168.61,168.49,1.2246]
[1729885187060,20.56205285,168.59,168.49,1.2246]
[1729885187260,2.9712,168.55,168.51,2.9717]
[1729885187458,20.56205285,168.59,168.49,1.2246]
[1729885188063,2.9712,168.55,168.5,2.9718]
[1729885188959,20.56205285,168.59,168.5,2.9718]
[1729885189157,2.9712,168.54,168.5,2.9718]
[1729885190160,2.9715,168.53,168.49,4.1966]
[1729885191055,2.9715,168.53,168.5,2.9719]
[1729885191458,2.9709,168.56,168.49,1.2246]
[1729885192058,2.9709,168.56,168.52,2.9714]
[1729885192362,2.9709,168.56,168.53,6.62]
[1729885193569,1.2563,168.61,168.53,6.62]
[1729885193761,2.9712,168.54,168.53,6.62]
[1729885194159,1.2563,168.61,168.53,6.62]
[1729885194369,2.9709,168.56,168.53,6.62]
[1729885194672,1.2563,168.61,168.53,6.62]
[1729885194870,2.9711,168.55,168.53,6.62]
[1729885196461,2.971,168.56,168.53,6.62]
[1729885197565,12.84826318,168.6,168.53,6.62]
[1729885198073,2.9705,168.58,168.53,6.62]
[1729885198369,12.84826318,168.6,168.53,6.62]
[1729885199270,2.9708,168.57,168.53,6.62]
[1729885200875,2.9706,168.58,168.53,9.5913]
[1729885201367,2.9704,168.59,168.54,2.9711]
[1729885201770,1.2563,168.61,168.54,2.9711]
[1729885201771,1.2563,168.61,168.54,12.84826318]
[1729885201967,4.2263,168.61,168.56,2.9707]
[1729885202163,1.2935,168.65,168.56,12.84826318]
[1729885203364,2.9698,168.62,168.57,2.9706]
[1729885203773,2.969,168.67,168.61,2.9698]
[1729885203976,12.84826318,168.68,168.62,6.62]
[1729885204871,2.9696,168.63,168.62,6.62]
[1729885205368,2.9705,168.58,168.57,6.62]
[1729885205581,12.84826318,168.6,168.57,6.62]
[1729885206376,15.81846318,168.6,168.57,6.62]
[1729885206577,2.9702,168.6,168.57,6.62]
[1729885206974,7.8997,168.7,168.57,6.62]
[1729885206975,12.84826318,168.67,168.57,6.62]
[1729885207279,12.84826318,168.69,168.59,12.84826318]
[1729885207471,2.9693,168.65,168.6,2.97]
[1729885207976,12.84826318,168.67,168.58,2.5455]
[1729885208177,2.9695,168.64,168.59,2.9703]
[1729885208378,4.18622439,168.71,168.58,1.2803]
[1729885208379,20.54058985,168.68,168.58,1.2803]
[1729885208588,2.9701,168.61,168.58,6.62]
[1729885208881,20.54058985,168.65,168.58,6.62]
[1729885209582,2.9703,168.59,168.58,6.62]
[1729885212182,2.9703,168.59,168.58,11.36]
[1729885214382,2.9703,168.59,168.58,4.74]
[1729885214985,20.54058985,168.57,168.5,6.6]
[1729885215689,2.9716,168.52,168.5,6.6]
[1729885215979,20.54058985,168.57,168.49,6.6]
[1729885216193,1.3013,168.56,168.49,6.6]
[1729885216577,2.9717,168.51,168.49,6.6]
[1729885216780,20.54058985,168.55,168.47,6.58]
[1729885216979,20.54058985,168.55,168.46,6.58]
[1729885219281,2.972,168.5,168.46,6.58]
[1729885219474,20.54058985,168.55,168.46,6.58]
[1729885220484,2.9721,168.49,168.46,6.58]
[1729885223488,2.9724,168.47,168.46,6.58]
[1729885225686,20.54058985,168.52,168.43,64.14]
[1729885225987,20.54058985,168.52,168.44,6.58]
[1729885226387,2.9727,168.46,168.44,6.58]
[1729885227087,20.54058985,168.52,168.4,1.3012]
[1729885227299,20.54058985,168.5,168.41,6.58]
[1729885227489,4.17642033,168.49,168.4,7.8812]
[1729885227689,2.9732,168.43,168.41,6.58]
[1729885230287,12.8518159,168.47,168.41,6.58]
[1729885230893,14.1118159,168.54,168.45,12.8518159]
[1729885231091,2.9713,168.51,168.47,12.8518159]
[1729885231289,2.9713,168.51,168.47,19.4318159]
[1729885231490,1.2983,168.59,168.49,12.8518159]
[1729885231692,2.9707,168.54,168.49,12.8518159]
[1729885231884,1.2983,168.59,168.51,12.8518159]
[1729885231885,2.94763817,168.59,168.51,12.8518159]
[1729885232084,12.8518159,168.62,168.53,12.8518159]
[1729885232296,12.8518159,168.62,168.54,6.58]
[1729885232489,2.9701,168.58,168.54,6.58]
[1729885232694,12.8518159,168.62,168.54,6.58]
[1729885233093,2.9702,168.57,168.54,6.58]
[1729885234090,1.2983,168.65,168.54,6.58]
[1729885234091,2.9699,168.59,168.54,6.58]
[1729885234297,20.53986369,168.69,168.55,20.53986369]
[1729885234599,2.9692,168.63,168.55,24.72316369]
[1729885234802,2.9692,168.63,168.56,2.5841]
[1729885234991,20.53986369,168.69,168.56,2.5841]
[1729885235194,2.9693,168.62,168.56,2.5841]
[1729885235499,20.53986369,168.69,168.56,2.5841]
[1729885236100,2.4228,168.7,168.56,2.5841]
[1729885236101,20.53986369,168.66,168.56,2.5841]
[1729885236998,2.97,168.58,168.56,2.5841]
[1729885237205,20.53986369,168.66,168.54,6.58]
[1729885237401,20.53986369,168.63,168.54,6.58]
[1729885237594,2.9702,168.57,168.54,6.58]
[1729885238199,2.9703,168.56,168.54,6.58]
[1729885239406,20.53986369,168.63,168.54,6.58]
[1729885239407,2.9698,168.59,168.54,6.58]
[1729885239607,2.4228,168.7,168.54,6.58]
[1729885239807,20.53986369,168.68,168.54,6.58]
[1729885240012,2.9693,168.62,168.56,2.9702]
[1729885240219,20.53986369,168.68,168.57,2.4196]
[1729885240511,2.9699,168.59,168.57,2.4196]
[1729885240707,20.53986369,168.66,168.57,2.4196]
[1729885243004,2.9694,168.6,168.57,2.4196]
[1729885245120,20.53986369,168.66,168.57,2.4196]
[1729885245318,2.9694,168.59,168.57,2.4196]
[1729885247923,20.53986369,168.68,168.57,2.4196]
[1729885248219,2.9691,168.62,168.57,2.4196]
[1729885248413,1.2237,168.7,168.6,20.53986369]
[1729885248619,2.968,168.68,168.61,6.54]
[1729885248808,199.80812346,168.75,168.62,20.53986369]
[1729885249014,20.53986369,168.75,168.62,20.53986369]
[1729885249416,20.53986369,168.75,168.63,2.9687]
[1729885250418,2.9678,168.69,168.63,2.9687]
[1729885250612,2.9678,168.69,168.61,6.54]
[1729885250613,20.53986369,168.72,168.61,6.54]
[1729885251016,2.9682,168.66,168.61,6.54]
[1729885251709,2.9686,168.64,168.62,6.54]
[1729885252621,2.9687,168.63,168.62,6.54]
[1729885255013,2.9693,168.6,168.59,64.14]
[1729885255222,2.9693,168.6,168.59,70.68]
[1729885256323,2.9691,168.62,168.59,70.68]
[1729885256523,12.83631322,168.64,168.59,70.68]
[1729885256910,2.9693,168.6,168.59,70.68]
[1729885257116,2.9693,168.6,168.59,6.54]
[1729885260217,2.9702,168.55,168.53,3.7549]
[1729885260412,2.9702,168.55,168.54,6.54]
[1729885260724,12.83631322,168.57,168.49,64.12]
[1729885260918,12.83631322,168.57,168.53,6.54]
[1729885261422,2.9703,168.54,168.53,6.54]
[1729885262421,2.971,168.5,168.49,70.66]
[1729885263621,2.971,168.5,168.49,64.12]
[1729885263823,2.971,168.5,168.49,70.66]
[1729885264727,2.971,168.5,168.49,6.54]
[1729885266321,12.83631322,168.53,168.44,2.608]
[1729885266523,12.83631322,168.53,168.39,64.14]
[1729885266524,12.83631322,168.48,168.4,1.3212]
[1729885266731,12.83631322,168.48,168.41,6.54]
[1729885266932,2.9724,168.42,168.41,6.54]
[1729885269017,2.9722,168.44,168.41,6.54]
[1729885269223,2.5006,168.51,168.42,12.83631322]
[1729885269728,2.9715,168.48,168.42,15.80871322]
[1729885269928,2.5006,168.51,168.42,12.83631322]
[1729885270326,2.9714,168.48,168.42,15.80871322]
[1729885270927,2.9716,168.47,168.42,12.83631322]
[1729885273332,1.2954,168.51,168.42,12.83631322]
[1729885273529,2.9717,168.46,168.42,12.83631322]
[1729885274128,1.2954,168.51,168.41,6.54]
[1729885274129,12.83631322,168.48,168.41,6.54]
[1729885274831,2.9717,168.46,168.41,6.54]
[1729885275033,12.83631322,168.48,168.41,6.54]
[1729885275426,12.83631322,168.5,168.41,6.54]
[1729885275822,2.9711,168.5,168.42,12.83631322]
[1729885276023,12.83631322,168.54,168.44,12.83631322]
[1729885276431,2.971,168.51,168.45,2.9719]
[1729885276632,2.971,168.51,168.44,12.83631322]
[1729885276633,12.83631322,168.54,168.44,12.83631322]
[1729885276935,12.83631322,168.54,168.44,2.972]